bitfinex/quotes_ETHUSD_20241207
["timestamp","ask_amount","ask_price","bid_price","bid_amount"]
[1733565423013,0.86789625,3987.1,3986.7,0.33293909]
[1733565423308,0.8681578,3987.0,3986.7,0.33293909]
[1733565423519,1.04976226,3987.2,3986.7,0.18186109]
[1733565423717,2.1704036,3987.1,3986.7,0.18186109]
[1733565423923,0.86816144,3987.0,3986.7,0.18186109]
[1733565424227,1.04976226,3987.1,3986.7,0.18186109]
[1733565424390,2.17133293,3987.0,3986.7,0.03078309]
[1733565424596,0.86853317,3986.9,3986.7,0.03078309]
[1733565424794,1.04976226,3987.1,3986.7,0.03078309]
[1733565425022,2.17134875,3987.0,3986.7,0.03078309]
[1733565425330,2.17216427,3986.9,3986.7,0.03078309]
[1733565425530,0.8685395,3986.8,3986.7,0.03078309]
[1733565426328,2.17278045,3986.8,3986.7,0.03078309]
[1733565427505,2.17375797,3986.8,3986.7,0.03078309]
[1733565427904,2.17375797,3986.8,3986.7,0.10915489]
[1733565430593,3.22352023,3986.8,3986.7,0.10915489]
[1733565430793,2.17375797,3986.8,3986.7,0.10915489]
[1733565431935,3.22537449,3986.8,3986.7,0.10915572]
[1733565432705,3.22537449,3986.8,3986.7,0.23455096]
[1733565433111,2.17375797,3986.8,3986.7,0.23455096]
[1733565433521,3.22551466,3986.8,3986.7,0.23455096]
[1733565436016,3.22551466,3986.8,3986.7,0.3579686]
[1733565436911,3.22551466,3986.8,3986.7,0.35796687]
[1733565437357,3.22551929,3986.8,3986.7,0.35796687]
[1733565437583,3.22551929,3986.8,3986.7,0.23454923]
[1733565438474,3.22534464,3986.8,3986.7,0.10915468]
[1733565439274,3.22536364,3986.8,3986.7,0.10915468]
[1733565439861,2.1737626,3986.8,3986.7,0.10915468]
[1733565442435,2.1740405,3986.8,3986.7,0.07837172]
[1733565442897,2.1740405,3986.8,3986.7,0.07837204]
[1733565443574,1.05189821,3987.2,3986.7,0.68425281]
[1733565443774,1.05201027,3987.3,3987.2,0.5808]
[1733565443974,1.5746434,3987.6,3987.2,0.65917204]
[1733565444179,1.30491927,3987.5,3987.4,0.5808]
[1733565444385,1.30491927,3987.5,3987.4,0.65917204]
[1733565444613,2.77976913,3987.7,3987.4,0.65917204]
[1733565444614,0.64100723,3987.7,3987.5,0.0308]
[1733565444779,0.64100723,3987.7,3987.5,0.5808]
[1733565444780,1.30430726,3987.6,3987.5,0.5808]
[1733565445108,0.64100723,3987.7,3987.5,0.75370418]
[1733565445417,0.64100723,3987.7,3987.0,4.04994749]
[1733565445418,0.64100723,3987.7,3987.6,2.95673894]
[1733565445575,0.64100723,3987.7,3987.6,3.25241283]
[1733565447372,0.64100723,3987.7,3987.6,2.16629545]
[1733565448193,0.64100723,3987.7,3987.6,2.29318723]
[1733565452896,0.64100723,3987.7,3987.6,2.08948305]
[1733565453094,0.64100723,3987.7,3987.6,2.2931853]
[1733565453621,0.64100723,3987.7,3987.6,3.2965613]
[1733565455426,0.8318,3988.2,3987.6,0.20370225]
[1733565455598,0.03134505,3988.1,3987.7,0.20370225]
[1733565455804,0.8318,3988.2,3987.8,0.07834702]
[1733565455805,3.88733153,3988.2,3987.8,0.07834702]
[1733565455987,1.75526,3988.0,3987.9,0.07834702]
[1733565456187,2.58706,3988.0,3987.9,0.07834702]
[1733565456524,0.8318,3988.0,3987.9,0.07834702]
[1733565457384,2.58706,3988.0,3987.9,0.07834702]
[1733565457629,1.75532,3987.9,3987.3,1.08611738]
[1733565457784,1.75532,3987.9,3987.4,0.20372993]
[1733565457785,3.05535191,3987.9,3987.4,0.20372993]
[1733565457990,2.5872,3987.7,3987.5,0.07835766]
[1733565458222,2.5872,3987.7,3987.6,0.07835766]
[1733565461996,0.8318,3987.7,3987.6,0.07835766]
[1733565462591,2.58719,3987.7,3987.6,0.07835766]
[1733565463601,2.58719,3987.7,3987.3,1.08611738]
[1733565463800,2.58719,3987.7,3987.6,0.07836109]
[1733565464734,2.58719,3987.7,3987.6,1.16447847]
[1733565468273,2.58719,3987.7,3987.6,1.28985628]
[1733565468437,3.45411955,3987.7,3987.6,1.28985628]
[1733565468641,4.75451388,3987.7,3987.6,1.16447847]
[1733565468956,5.80311492,3987.7,3987.6,1.16447847]
[1733565471371,2.16744396,3987.7,3987.6,1.16447847]
[1733565471973,2.16762741,3987.7,3987.6,1.16447847]
[1733565472337,1.04860104,3988.0,3987.6,1.71447847]
[1733565472537,0.86710058,3987.9,3987.7,0.07836109]
[1733565472738,1.04860104,3988.0,3987.8,0.07836109]
[1733565472978,2.16776991,3987.9,3987.4,0.0308]
[1733565473129,1.04860104,3988.0,3987.5,0.07835591]
[1733565473333,2.16777488,3987.9,3987.6,0.07835591]
[1733565473545,1.04860104,3988.0,3987.7,0.07835591]
[1733565473847,1.04860104,3988.0,3987.8,1.16447285]
[1733565473848,2.16784996,3987.9,3987.8,1.16447285]
[1733565474960,2.16794608,3987.9,3987.8,1.16447285]
[1733565476986,2.16815185,3987.9,3987.8,1.16447285]
[1733565477493,2.16815185,3987.9,3987.8,1.16447257]
[1733565478158,3.21675289,3987.9,3987.8,1.16447257]
[1733565481058,3.21717767,3987.9,3987.8,1.16447257]
[1733565481672,3.21772836,3987.9,3987.8,1.16447257]
[1733565482538,2.16857663,3987.9,3987.8,1.16447257]
[1733565483139,2.16857663,3987.9,3987.8,1.164473]
[1733565483351,2.16857663,3987.9,3987.8,1.2909203]
[1733565483647,1.04928171,3988.1,3987.8,1.2909203]
[1733565483806,0.86778236,3988.0,3987.9,0.07835562]
[1733565484144,0.86778236,3988.0,3987.9,1.164473]
[1733565486044,2.16977315,3988.0,3987.9,1.164473]
[1733565486449,2.16992318,3988.0,3987.9,1.41217194]
[1733565486827,2.16992318,3988.0,3987.9,1.41217242]
[1733565487017,2.16992318,3988.0,3987.9,1.26109442]
[1733565487219,2.16992318,3988.0,3987.9,1.01339065]
[1733565487418,3.21920489,3988.0,3987.9,0.86231265]
[1733565487654,3.21920489,3988.0,3987.9,1.28921814]
[1733565487960,3.21920489,3988.0,3987.9,1.16446865]
[1733565489551,2.16992318,3988.0,3987.9,1.16446865]
[1733565489783,7.06668033,3988.0,3987.9,0.07835127]
[1733565490732,7.0683108,3988.0,3987.9,0.07835127]
[1733565491155,9.69452837,3988.0,3987.9,0.07835127]
[1733565491333,1.75539,3987.7,3987.6,0.1]
[1733565491517,5.66425668,3987.7,3987.6,0.1]
[1733565491720,9.12345598,3987.7,3987.6,0.1]
[1733565492962,7.02248088,3987.7,3987.6,0.1]
[1733565493140,7.84228088,3987.7,3987.6,0.1]
[1733565493759,10.46849845,3987.7,3987.6,0.1]
[1733565493962,10.46849845,3987.7,3987.6,0.06]
[1733565494262,7.84228088,3987.7,3987.6,0.06]
[1733565495329,5.67072723,3987.7,3987.6,0.06]
[1733565495529,7.84263448,3987.7,3987.6,0.06]
[1733565500374,7.84204934,3987.7,3987.6,0.06]
[1733565505995,10.46634319,3987.7,3987.6,0.06]
[1733565506195,6.48382514,3987.7,3987.6,0.06]
[1733565506994,8.28807,3987.7,3987.6,0.06]
[1733565507161,7.76334468,3987.7,3987.6,0.06]
[1733565507358,6.02603165,3987.7,3987.6,0.06]
[1733565507696,7.76334468,3987.7,3987.6,0.06]
[1733565508059,5.66402514,3987.7,3987.6,0.06]
[1733565508468,7.76332373,3987.7,3987.6,0.06]
[1733565508677,5.66402514,3987.7,3987.6,0.06]
[1733565508998,7.76319562,3987.7,3987.6,0.06]
[1733565509163,5.66402514,3987.7,3987.6,0.06]
[1733565509698,7.76322371,3987.7,3987.6,0.06]
[1733565510569,7.76161435,3987.7,3987.6,0.06]
[1733565511057,5.66241578,3987.7,3987.6,0.06]
[1733565511262,3.90702578,3987.7,3987.1,1.08611738]
[1733565511482,1.04943615,3987.3,3987.2,0.07836724]
[1733565511673,3.2191489,3987.3,3987.2,0.07836724]
[1733565515088,3.21897069,3987.3,3987.2,0.07836724]
[1733565515802,3.21824076,3987.3,3987.2,0.07836724]
[1733565516892,2.16898282,3987.3,3987.2,0.07836724]
[1733565517264,3.21824076,3987.3,3987.2,0.07836724]
[1733565517862,2.16898282,3987.3,3987.2,0.07836724]
[1733565518187,3.21824708,3987.3,3987.2,0.07836724]
[1733565518393,2.16898282,3987.3,3987.2,0.07836724]
[1733565518572,3.74313705,3987.3,3987.2,0.07836724]
[1733565518909,2.16898282,3987.3,3987.2,0.07836724]
[1733565519092,2.16898282,3987.3,3987.0,1.11691738]
[1733565519402,3.21823418,3987.2,3986.8,1.63611738]
[1733565519563,3.21823418,3987.1,3986.8,1.63611738]
[1733565519769,0.86759313,3987.0,3986.8,1.63611738]
[1733565520007,1.04925136,3987.2,3986.8,1.63611738]
[1733565520308,2.16912315,3987.1,3986.8,1.63611738]
[1733565520466,0.86764926,3987.0,3986.8,1.63611738]
[1733565520807,1.04925136,3987.2,3986.8,1.81551914]
[1733565520976,2.1691363,3987.1,3986.8,1.81551914]
[1733565521178,1.04925136,3987.2,3986.8,1.81551914]
[1733565521378,2.16906617,3987.1,3986.8,1.81551914]
[1733565521597,0.86762647,3987.0,3986.8,1.81551914]
[1733565521797,1.04925136,3987.2,3986.8,1.81551914]
[1733565522101,2.16915861,3987.1,3986.8,1.81551914]
[1733565522311,1.04925136,3987.2,3986.8,1.81551914]
[1733565522477,2.16917627,3987.1,3986.8,1.81551914]
[1733565522678,1.04925136,3987.2,3986.8,1.81551914]
[1733565523012,0.86771072,3987.1,3986.8,1.81551914]
[1733565523306,1.04925136,3987.2,3986.8,1.81551914]
[1733565523497,0.86769608,3987.1,3986.8,1.81551914]
[1733565523702,0.86775766,3987.0,3986.8,1.81551914]
[1733565524012,1.04925136,3987.2,3987.0,0.55]
[1733565524219,1.04925136,3987.4,3987.2,0.55]
[1733565524375,2.16934498,3987.3,3987.2,0.55]
[1733565524576,0.86773799,3987.3,3987.2,0.55]
[1733565525394,1.04941858,3987.5,3987.2,0.55]
[1733565525599,2.16971237,3987.4,3987.2,0.55]
[1733565525879,1.04941858,3987.5,3987.2,0.55]
[1733565525880,0.86788763,3987.3,3987.2,0.55]
[1733565527593,1.04941858,3987.5,3987.2,0.55]
[1733565527794,0.86792095,3987.4,3987.2,0.55]
[1733565527994,1.04941858,3987.5,3987.4,1.08611738]
[1733565528194,3.21925811,3987.5,3987.4,1.08611738]
[1733565529094,3.21925811,3987.5,3987.4,1.63611738]
[1733565529297,2.16983953,3987.5,3987.4,1.85780912]
[1733565529496,2.16983953,3987.5,3987.4,1.88860912]
[1733565529710,0.86793581,3987.5,3987.4,1.88860912]
[1733565530015,1.04941858,3987.7,3987.4,1.88860912]
[1733565530217,2.17018507,3987.6,3987.5,0.55]
[1733565530403,0.86807451,3987.6,3987.5,0.55]
[1733565530604,2.17018628,3987.6,3987.5,0.7516025]
[1733565532695,0.86807451,3987.6,3987.5,0.7516025]
[1733565532908,1.06920985,3987.9,3987.5,1.83771988]
[1733565532909,2.11862843,3987.9,3987.5,1.83771988]
[1733565533220,1.06920985,3987.9,3987.8,1.63611738]
[1733565533387,1.93762602,3987.9,3987.8,1.98350111]
[1733565533904,1.06920985,3987.9,3987.8,1.63611738]
[1733565535310,1.04941858,3988.1,3987.8,1.63611738]
[1733565535520,1.57415423,3988.3,3987.8,1.63611738]
[1733565535521,1.04941858,3988.2,3988.0,1.63611738]
[1733565535822,1.04941858,3988.2,3988.1,1.08611738]
[1733565535999,2.17078312,3988.2,3988.1,1.66691738]
[1733565536200,0.86831325,3988.2,3988.1,1.89111661]
[1733565536729,1.04941858,3988.4,3988.1,1.89111661]
[1733565536730,1.04941858,3988.4,3988.2,0.55]
[1733565536900,0.86804481,3988.3,3988.2,0.55]
[1733565537103,1.04941858,3988.6,3988.2,1.63611738]
[1733565537304,1.04941858,3988.8,3988.4,0.55]
[1733565537508,1.04941858,3989.0,3988.5,0.0308]
[1733565537704,1.04941858,3989.0,3988.8,1.08611738]
[1733565537705,2.16929575,3988.9,3988.8,1.08611738]
[1733565537895,0.8677183,3988.9,3988.8,1.63611738]
[1733565538516,1.04941858,3989.1,3988.9,0.55]
[1733565538722,1.04941858,3989.1,3989.0,1.11691738]
[1733565538927,3.21772511,3989.1,3989.0,1.66691738]
[1733565539497,2.16830653,3989.1,3989.0,1.66691738]
[1733565540544,2.16723826,3989.1,3989.0,1.66691738]
[1733565541209,2.16723826,3989.1,3989.0,1.63611738]
[1733565541415,0.8668953,3989.1,3989.0,1.63611738]
[1733565541740,1.21594211,3989.1,3988.8,0.55]
[1733565541903,1.21594211,3989.1,3988.5,0.0308]
[1733565541904,0.86656773,3989.0,3988.6,0.55]
[1733565542110,2.10383681,3989.1,3988.6,0.55]
[1733565542290,0.86637911,3989.0,3988.6,0.55]
[1733565542497,3.4034037,3989.1,3988.6,0.55]
[1733565542724,0.86642387,3989.0,3988.4,0.55]
[1733565543037,3.4034037,3989.1,3988.7,1.08611738]
[1733565543328,0.86626317,3989.0,3988.7,1.08611738]
[1733565543536,1.64844678,3989.1,3988.7,1.08611738]
[1733565543832,0.34896654,3989.0,3988.4,0.55]
[1733565544034,0.34896654,3989.0,3988.7,1.08611738]
[1733565544400,0.03133848,3988.9,3988.4,0.55]
[1733565544732,0.7918,3988.8,3988.5,1.08611738]
[1733565545037,1.18630451,3988.8,3988.6,0.55]
[1733565545197,2.94122451,3988.8,3988.6,0.55]
[1733565545598,1.75496,3988.7,3988.5,1.08611738]
[1733565546699,1.18630451,3988.8,3988.2,1.08611738]
[1733565546899,1.75508,3988.4,3988.3,0.55]
[1733565547110,1.75508,3988.4,3988.2,1.08611738]
[1733565547317,1.75508,3988.4,3988.1,1.08611738]
[1733565547527,1.75508,3988.4,3988.2,0.55]
[1733565552344,2.34854901,3988.7,3988.2,0.55]
[1733565552539,0.866207,3988.6,3988.4,1.08611738]
[1733565552713,1.04941858,3989.0,3988.5,0.55]
[1733565553042,1.04941858,3989.0,3988.4,1.14198835]
[1733565553043,3.05434364,3989.3,3989.0,0.55]
[1733565553200,1.75473,3989.3,3989.0,0.55]
[1733565553401,2.09109702,3989.4,3989.0,0.55]
[1733565553629,0.86618627,3989.3,3989.0,0.55]
[1733565554343,2.54645,3989.4,3989.0,0.55]
[1733565555047,3.8455574,3989.4,3989.0,0.55]
[1733565555223,2.54645,3989.4,3989.0,0.55]
[1733565556615,2.90603686,3989.4,3989.0,0.55]
[1733565556815,1.15138686,3989.4,3989.0,0.55]
[1733565557037,1.15138686,3989.4,3988.8,1.08611738]
[1733565557038,1.15138686,3989.4,3988.9,0.55]
[1733565557248,2.90603686,3989.4,3988.9,0.55]
[1733565558915,2.90603686,3989.4,3989.0,1.08611738]
[1733565559952,3.10910689,3989.7,3989.0,1.08611738]
[1733565560154,0.13073032,3990.4,3989.4,0.55]
[1733565560155,1.75447,3989.8,3989.4,0.55]
[1733565560452,1.75447,3989.8,3989.3,1.08611738]
[1733565560820,1.75447,3989.8,3989.3,0.93503938]
[1733565566423,2.51529,3990.0,3989.3,0.93503938]
[1733565566835,0.7609,3990.0,3989.3,0.93503938]
[1733565567138,1.75447,3989.9,3989.3,0.93503938]
[1733565567523,1.75447,3989.9,3989.4,0.0308]
[1733565567726,1.75447,3989.9,3989.5,1.08611738]
[1733565568362,0.86548184,3989.8,3989.5,1.08611738]
[1733565568529,1.75447,3989.9,3989.5,1.08611738]
[1733565568731,0.86561545,3989.8,3989.5,1.08611738]
[1733565569222,1.75447,3989.9,3989.5,1.08611738]
[1733565569427,1.75449,3989.8,3989.5,1.08611738]
[1733565569862,1.75449,3989.8,3988.9,0.15482612]
[1733565570053,1.75449,3989.8,3989.3,1.08611738]
[1733565573159,1.75449,3989.8,3989.0,0.55]
[1733565573160,1.75445,3989.9,3989.5,1.08611738]
[1733565573539,1.75447,3989.8,3989.5,1.08611738]
[1733565576845,3.05423499,3989.8,3989.5,1.08611738]
[1733565577052,1.04941858,3989.9,3989.4,0.0308]
[1733565577377,1.75451,3989.7,3989.4,0.0308]
[1733565581978,1.04941858,3989.9,3989.4,0.0308]
[1733565582155,2.62152511,3989.8,3989.4,0.0308]
[1733565582479,1.75448,3989.8,3989.4,0.0308]
[1733565583978,1.75448,3989.8,3989.5,1.08611738]
[1733565585675,0.86704865,3989.7,3989.5,1.08611738]
[1733565585876,1.75448,3989.8,3989.5,1.08611738]
[1733565586177,0.86704946,3989.7,3989.5,1.08611738]
[1733565586370,1.75448,3989.8,3989.5,1.08611738]
[1733565586570,0.86707292,3989.7,3989.5,1.08611738]
[1733565586805,1.75448,3989.8,3989.5,1.08611738]
[1733565586943,0.86707139,3989.7,3989.5,1.08611738]
[1733565587146,1.75448,3989.8,3989.5,1.08611738]
[1733565587434,0.86707177,3989.7,3989.5,1.08611738]
[1733565587547,1.75448,3989.8,3989.5,1.08611738]
[1733565587877,0.8670652,3989.7,3989.5,1.08611738]
[1733565588080,1.75448,3989.8,3989.5,1.08611738]
[1733565588247,0.86706475,3989.7,3989.5,1.08611738]
[1733565588450,1.75448,3989.8,3989.5,1.08611738]
[1733565588693,0.86707326,3989.7,3989.5,1.08611738]
[1733565588900,1.75448,3989.8,3989.5,1.08611738]
[1733565589118,2.62156999,3989.7,3989.5,1.08611738]
[1733565589311,1.75451,3989.7,3989.5,1.08611738]
[1733565589812,1.75448,3989.8,3989.5,1.08611738]
[1733565589967,0.86707539,3989.7,3989.5,1.08611738]
[1733565590166,1.75448,3989.8,3989.5,1.08611738]
[1733565590396,0.86710479,3989.7,3989.5,1.08611738]
[1733565590607,1.75448,3989.8,3989.5,1.08611738]
[1733565590806,0.86710462,3989.7,3989.5,1.08611738]
[1733565590978,1.75448,3989.8,3989.5,1.08611738]
[1733565591307,0.86710498,3989.7,3989.5,1.08611738]
[1733565591510,1.75448,3989.8,3989.5,1.08611738]
[1733565591716,0.86715556,3989.7,3989.5,1.08611738]
[1733565592009,1.75448,3989.8,3989.5,1.08611738]
[1733565592210,2.62168702,3989.7,3989.4,0.0308]
[1733565592423,1.75452,3989.7,3989.4,0.0308]
[1733565592872,1.75452,3989.7,3989.0,0.5808]
[1733565593074,2.80385858,3989.9,3989.4,1.08611738]
[1733565593309,3.73141229,3989.8,3989.4,1.08611738]
[1733565593505,2.16864352,3989.7,3989.4,1.08611738]
[1733565593707,1.04941858,3989.8,3989.4,1.08611738]
[1733565593884,0.8674462,3989.7,3989.4,1.08611738]
[1733565594086,2.80390858,3989.8,3989.4,1.08611738]
[1733565594301,2.16862143,3989.7,3989.4,1.08611738]
[1733565594619,0.86744857,3989.6,3989.4,1.08611738]
[1733565594783,1.75452,3989.7,3989.4,1.08611738]
[1733565594995,0.86769772,3989.6,3989.4,1.08611738]
[1733565595282,0.86797231,3989.5,3989.4,1.08611738]
[1733565595815,1.04941858,3989.6,3989.4,1.08611738]
[1733565595816,1.04941858,3989.8,3989.5,0.55]
[1733565596114,1.04941858,3989.9,3989.8,0.55]
[1733565596310,3.22039988,3989.9,3989.8,0.55]
[1733565597406,3.22039988,3989.9,3989.8,0.75362773]
[1733565597407,3.22074958,3989.9,3989.8,0.75362773]
[1733565598178,2.17116045,3989.9,3989.8,1.28974511]
[1733565598404,3.22190371,3989.9,3989.8,1.28974511]
[1733565599089,2.17116045,3989.9,3989.8,1.28974511]
[1733565600020,2.17116045,3989.9,3989.8,0.20362773]
[1733565601194,3.74531468,3989.9,3989.8,0.20362741]
[1733565601395,3.74531468,3989.9,3989.8,0.07831823]
[1733565601640,3.7467432,3989.9,3989.8,0.07831823]
[1733565603119,5.5011632,3989.9,3989.8,0.07831823]
[1733565603312,5.6656013,3989.9,3989.8,0.07831823]
[1733565603637,5.6656013,3989.9,3989.8,0.07831926]
[1733565604016,3.9111813,3989.9,3989.8,0.07831926]
[1733565607006,3.9111813,3989.9,3989.8,0.0783187]
[1733565607454,3.9111813,3989.9,3989.8,0.07831892]
[1733565607741,6.0100536,3989.9,3989.8,0.07831892]
[1733565610438,6.0100536,3989.9,3989.8,0.0783187]
[1733565613941,7.7644736,3989.9,3989.8,0.07831873]
[1733565615341,7.7869802,3989.9,3989.8,0.07831873]
[1733565616234,7.78831124,3989.9,3989.8,0.07831873]
[1733565617629,7.78831124,3989.9,3989.5,0.55]
[1733565617847,1.57756308,3989.7,3989.5,0.55]
[1733565618023,2.17392001,3989.6,3989.5,0.55]
[1733565618218,2.19643713,3989.6,3989.5,0.62831934]
[1733565620652,2.19643713,3989.6,3989.5,0.55]
[1733565620858,2.19643713,3989.6,3989.5,0.6283194]
[1733565621861,3.77400021,3989.6,3989.5,0.6283194]
[1733565622042,3.93584539,3989.6,3989.5,0.6283194]
[1733565622353,3.774118,3989.6,3989.5,0.6283194]
[1733565622778,3.93579635,3989.6,3989.5,0.6283194]
[1733565623057,3.77411132,3989.6,3989.5,0.6283194]
[1733565624064,3.7515942,3989.6,3989.5,0.6283194]
[1733565624567,3.7515942,3989.6,3989.5,0.55]
[1733565624732,3.7515942,3989.6,3989.5,0.62831979]
[1733565624917,3.7515942,3989.6,3989.5,0.07831979]
[1733565625743,3.75194281,3989.6,3989.5,0.07831979]
[1733565627572,3.75194281,3989.6,3989.4,1.08611738]
[1733565627869,2.17426862,3989.5,3989.4,1.63611738]
[1733565628023,2.17426862,3989.5,3989.4,1.71443775]
[1733565629445,2.17426862,3989.5,3989.4,0.07832037]
[1733565629657,9.17937688,3989.5,3989.4,0.07832037]
[1733565629823,9.14804492,3989.5,3989.4,0.07832037]
[1733565630024,8.5679682,3989.5,3989.4,0.07832037]
[1733565630250,6.46409111,3989.5,3989.4,0.07832037]
[1733565630763,6.46424864,3989.5,3989.4,0.07832037]
[1733565630929,8.56812573,3989.5,3989.4,0.07832708]
[1733565633234,4.70964864,3989.5,3989.4,0.07832708]
[1733565634346,4.70964864,3989.5,3989.4,0.07832619]
[1733565635052,6.46424864,3989.5,3989.4,0.07832619]
[1733565635448,4.28982249,3989.5,3989.4,0.07832619]
[1733565635764,6.46365766,3989.5,3989.4,0.07832619]
[1733565638348,9.6871859,3989.5,3989.4,0.07832619]
[1733565638853,7.58330881,3989.5,3989.4,0.07832619]
[1733565639253,10.21173461,3989.5,3989.4,0.07832619]
[1733565639658,10.21175702,3989.5,3989.4,0.07832619]
[1733565640281,5.40947364,3989.5,3989.4,0.07832619]
[1733565640468,10.21067869,3989.5,3989.4,0.07832619]
[1733565641082,10.21067869,3989.5,3988.7,1.08611738]
[1733565641295,5.17829719,3989.5,3989.4,0.07833333]
[1733565641588,1.75477,3989.2,3988.7,1.08611738]
[1733565641749,1.05109859,3989.0,3988.8,0.07833287]
[1733565641946,2.17281403,3988.9,3988.7,1.08611738]
[1733565642151,1.05109859,3989.0,3988.7,1.08611738]
[1733565642454,2.17259003,3988.9,3988.8,0.07833286]
[1733565643184,0.86903601,3988.9,3988.8,0.07833286]
[1733565644774,0.86903601,3988.9,3988.7,1.08611738]
[1733565645105,1.75501,3988.6,3988.0,0.0308]
[1733565645289,3.22354576,3988.5,3988.1,0.20201432]
[1733565645492,0.86902721,3988.4,3988.2,0.07834254]
[1733565645789,1.05097773,3988.5,3988.3,0.07834254]
[1733565645963,0.86877792,3988.4,3988.0,1.11691738]
[1733565646169,1.75424,3988.5,3988.1,0.07834354]
[1733565646367,1.75424,3988.5,3988.0,1.24470317]
[1733565646368,1.75424,3988.5,3988.2,0.21064821]
[1733565646566,1.75424,3988.5,3988.3,0.07834354]
[1733565646902,1.75424,3988.5,3988.4,0.07834354]
[1733565647060,2.62281309,3988.5,3988.4,0.07834354]
[1733565647260,2.62281309,3988.5,3988.0,1.01338292]
[1733565647459,1.75424,3988.5,3988.0,1.01338292]
[1733565648203,1.75424,3988.5,3988.0,0.86230492]
[1733565648559,1.75424,3988.5,3988.0,0.71122692]
[1733565649704,1.75509,3988.4,3988.0,0.55]
[1733565650964,1.75509,3988.4,3987.9,0.55]
[1733565651814,1.75509,3988.4,3988.0,1.08611738]
[1733565652928,1.75509,3988.4,3987.9,0.55]
[1733565653089,1.75509,3988.4,3988.0,1.08611738]
[1733565653486,2.5813,3988.6,3988.0,1.08611738]
[1733565653833,0.8263,3988.6,3988.3,1.08611738]
[1733565653993,1.05097773,3988.9,3988.3,1.08611738]
[1733565654198,0.86771418,3988.8,3988.4,0.55]
[1733565654419,1.05097773,3988.9,3988.4,0.55]
[1733565654733,0.86767722,3988.8,3988.4,0.55]
[1733565654903,1.87727773,3989.0,3988.4,0.55]
[1733565655225,2.1691223,3988.9,3988.6,1.08611738]
[1733565655394,1.05097773,3989.0,3988.6,1.08611738]
[1733565655593,0.86763562,3988.9,3988.6,1.08611738]
[1733565655837,1.05097773,3989.1,3988.6,1.08611738]
[1733565656004,3.22000693,3989.0,3988.6,1.08611738]
[1733565656203,0.86761168,3988.9,3988.6,1.08611738]
[1733565656428,0.86761168,3988.8,3988.6,1.08611738]
[1733565656730,1.05097773,3989.1,3988.7,0.0308]
[1733565656907,2.16901358,3989.0,3988.7,0.0308]
[1733565657105,0.86761884,3988.9,3988.7,0.0308]
[1733565657313,1.05097773,3989.1,3988.7,0.0308]
[1733565657548,0.8676185,3989.0,3988.7,0.0308]
[1733565657694,1.05097773,3989.2,3988.7,0.0308]
[1733565657895,2.16900463,3989.1,3988.7,0.0308]
[1733565658126,1.05097773,3989.2,3988.7,0.0308]
[1733565658331,2.16908245,3989.1,3988.7,0.0308]
[1733565658521,2.80570773,3989.2,3988.7,0.0308]
[1733565658852,2.1690838,3989.1,3988.7,0.0308]
[1733565659005,0.86763352,3989.0,3988.7,0.0308]
[1733565659336,1.05097773,3989.1,3988.6,1.08611738]
[1733565659535,0.86765752,3989.0,3988.7,0.07833521]
[1733565659716,1.05097773,3989.1,3988.8,0.07833521]
[1733565660038,0.86765549,3989.0,3988.9,0.07833521]
[1733565661914,2.80570773,3989.2,3988.9,0.07833521]
[1733565662136,2.16925611,3989.1,3989.0,0.07833521]
[1733565662524,2.90704728,3989.1,3989.0,0.07833521]
[1733565663418,3.79424419,3989.1,3989.0,0.07833521]
[1733565663623,4.6620262,3989.1,3989.0,0.07833521]
[1733565664019,4.6620262,3989.1,3989.0,0.07833493]
[1733565664308,4.6620262,3989.1,3988.5,1.08611738]
[1733565664507,1.05097773,3989.2,3988.5,1.08611738]
[1733565664706,2.169653,3989.1,3988.6,0.07833491]
[1733565664905,1.05097773,3989.2,3988.7,0.07833491]
[1733565665144,2.16965782,3989.1,3988.8,0.07833491]
[1733565665311,0.86789012,3989.0,3988.9,0.07833491]
[1733565665516,1.05097773,3989.2,3988.9,0.07833491]
[1733565665716,2.16980491,3989.1,3989.0,0.07833491]
[1733565665929,0.86792196,3989.1,3989.0,0.07833491]
[1733565666131,2.16980793,3989.1,3989.0,0.07833491]
[1733565667145,2.16989779,3989.1,3989.0,0.07833491]
[1733565667830,2.16989779,3989.1,3988.5,1.21046787]
[1733565668032,0.86792196,3989.0,3988.5,1.21046787]
[1733565668233,1.05097773,3989.2,3988.5,1.21046787]
[1733565668411,2.17024565,3989.1,3988.5,1.21046787]
[1733565668610,0.86809826,3989.0,3988.5,1.21046787]
[1733565668812,1.05097773,3989.2,3988.5,1.21046787]
[1733565669018,2.17031001,3989.1,3988.5,1.21046787]
[1733565669228,0.868124,3989.0,3988.5,1.21046787]
[1733565669455,1.05097773,3989.2,3988.5,1.21046787]
[1733565669753,2.17048715,3989.1,3988.5,1.21046787]
[1733565670098,0.86819486,3989.0,3988.5,1.21046787]
[1733565670249,1.05097773,3989.1,3988.5,1.21046787]
[1733565670447,0.86824495,3989.0,3988.5,1.21046787]
[1733565670633,1.05097773,3989.1,3988.5,1.21046787]
[1733565670808,2.17068142,3989.0,3988.5,1.21046787]
[1733565671016,1.05097773,3989.1,3988.5,1.21046787]
[1733565671338,2.17068998,3989.0,3988.5,1.21046787]
[1733565671514,1.05097773,3989.1,3988.5,1.21046787]
[1733565671714,2.1708888,3989.0,3988.5,1.21046787]
[1733565671914,1.05097773,3989.1,3988.5,1.21046787]
[1733565672145,2.17089948,3989.0,3988.5,1.21046787]
[1733565672349,1.05097773,3989.1,3988.5,1.21046787]
[1733565672646,2.17108771,3989.0,3988.5,1.21046787]
[1733565672851,0.86842057,3988.9,3988.5,1.21046787]
[1733565673013,1.05097773,3989.1,3988.5,1.21046787]
[1733565673354,2.17129435,3989.0,3988.5,1.21046787]
[1733565673519,0.86851774,3988.9,3988.5,1.21046787]
[1733565673718,1.05097773,3989.1,3988.5,1.21046787]
[1733565673918,2.17135131,3989.0,3988.5,1.21046787]
[1733565674113,0.86854052,3988.9,3988.5,1.21046787]
[1733565674319,1.05097773,3989.1,3988.5,1.21046787]
[1733565674613,2.17155198,3989.0,3988.5,1.21046787]
[1733565674927,2.10219718,3989.4,3988.8,1.11691738]
[1733565674928,1.05097773,3989.4,3988.8,1.11691738]
[1733565675147,2.17154344,3989.3,3989.2,0.0308]
[1733565675447,0.86856473,3989.3,3989.2,0.10912691]
[1733565676021,1.05097773,3989.5,3989.2,0.10912691]
[1733565676340,3.85666718,3989.9,3989.3,0.07832691]
[1733565676341,0.86859507,3989.4,3989.3,0.07832691]
[1733565677125,1.05097773,3989.6,3989.3,0.07832691]
[1733565677315,2.98838672,3989.5,3989.3,0.07832691]
[1733565677515,2.98838672,3989.5,3989.4,0.07832691]
[1733565677516,0.817,3989.5,3989.4,0.07832691]